fUSD/lending_fUSD_20250515
["ID","MTS","AMOUNT","RATE_DAILY","PERIOD"]
[361203178,1747337979625,-568.20293504,0.00010998,2]
[361203179,1747337979651,-568.20293504,0.00010998,2]
[361203180,1747337979676,-568.20293504,0.00010998,2]
[361203181,1747337979701,-568.20293504,0.00010998,2]
[361203182,1747337979726,-568.20293504,0.00010998,2]
[361203183,1747337979751,-568.20293504,0.00010998,2]
[361203184,1747337979775,-568.20293504,0.00010998,2]
[361203185,1747337979801,-568.20293504,0.00010998,2]
[361203186,1747337979825,-568.20293504,0.00010998,2]
[361203187,1747337979849,-568.20293504,0.00010998,2]
[361203188,1747337979873,-568.20293504,0.00010998,2]
[361203189,1747337979897,-568.20293504,0.00010998,2]
[361203190,1747337979921,-568.20293504,0.00010998,2]
[361203191,1747337979947,-568.20293504,0.00010998,2]
[361203192,1747337979971,-568.20293504,0.00010998,2]
[361203193,1747337979995,-568.20293504,0.00010998,2]
[361203194,1747337980020,-568.20293504,0.00010998,2]
[361203195,1747337980044,-568.20293504,0.00010998,2]
[361203196,1747337980068,-568.20293504,0.00010998,2]
[361203197,1747337980093,-568.20293504,0.00010998,2]
[361203198,1747337980117,-568.20293504,0.00010998,2]
[361203199,1747337980142,-568.20293504,0.00010998,2]
[361203200,1747337980166,-568.20293504,0.00010998,2]
[361203201,1747337980191,-568.20293504,0.00010998,2]
[361203202,1747337980215,-568.20293504,0.00010998,2]
[361203203,1747337980239,-568.20293504,0.00010998,2]
[361203204,1747337980263,-568.20293504,0.00010998,2]
[361203205,1747337980288,-568.20293504,0.00010998,2]
[361203206,1747337980312,-568.20293504,0.00010998,2]
[361203207,1747337980339,-568.20293504,0.00010998,2]
[361203208,1747337980364,-568.20293504,0.00010998,2]
[361203209,1747337980389,-568.20293504,0.00010998,2]
[361203210,1747337980415,-568.20293504,0.00010998,2]
[361203211,1747337980441,-568.20293504,0.00010998,2]
[361203212,1747337980467,-568.20293504,0.00010998,2]
[361203213,1747337980493,-568.20293504,0.00010998,2]
[361203214,1747337980519,-568.20293504,0.00010998,2]
[361203215,1747337980544,-568.20293504,0.00010998,2]
[361203216,1747337980573,-568.20293504,0.00010998,2]
[361203217,1747337980603,-568.20293504,0.00010998,2]
[361203218,1747337980631,-568.20293504,0.00010998,2]
[361203219,1747337980657,-566.17363884,0.00010998,2]
[361203220,1747337980684,-566.17363884,0.00010998,2]
[361203221,1747337980708,-566.17363884,0.00010998,2]
[361203222,1747337980733,-566.17363884,0.00010998,2]
[361203223,1747337980758,-566.17363884,0.00010998,2]
[361203224,1747337980783,-566.17363884,0.00010998,2]
[361203225,1747337980811,-566.17363884,0.00010998,2]
[361203226,1747337980837,-566.17363884,0.00010998,2]
[361203227,1747337980861,-566.17363884,0.00010998,2]
[361203228,1747337980886,-566.17363884,0.00010998,2]
[361203229,1747337980912,-566.17363884,0.00010998,2]
[361203230,1747337980937,-566.17363884,0.00010998,2]
[361203231,1747337980962,-566.17363884,0.00010998,2]
[361203232,1747337980987,-566.17363884,0.00010998,2]
[361203233,1747337981011,-566.17363884,0.00010998,2]
[361203234,1747337981036,-566.17363884,0.00010998,2]
[361203235,1747337981061,-566.17363884,0.00010998,2]
[361203236,1747337981087,-566.17363884,0.00010998,2]
[361203237,1747337981112,-566.17363884,0.00010998,2]
[361203238,1747337981137,-566.17363884,0.00010998,2]
[361203239,1747337981162,-566.17363884,0.00010998,2]
[361203240,1747337981188,-566.17363884,0.00010998,2]
[361203241,1747337981212,-566.17363884,0.00010998,2]
[361203242,1747337981240,-566.17363884,0.00010998,2]
[361203243,1747337981265,-566.17363884,0.00010998,2]
[361203244,1747337981291,-566.17363884,0.00010998,2]
[361203245,1747337981315,-566.17363884,0.00010998,2]
[361203246,1747337981339,-566.17363884,0.00010998,2]
[361203247,1747337981362,-1200.0,0.00010998,2]
[361203248,1747337981384,-171.12539803,0.00010999,2]
[361203249,1747337981409,-955652.5029625,0.00010999,2]
[361203250,1747337981433,-993.39865828,0.00010999,2]
[361203251,1747337981455,-584.09165148,0.00010999,2]
[361203252,1747337981479,-153.38983687,0.00010999,2]
[361203253,1747337981502,-2884.74548548,0.00010999,2]
[361203254,1747337981525,-333.749037,0.00010999,2]
[361203255,1747337981548,-201.41680338,0.00010999,2]
[361203256,1747337981576,-512060.58329981,0.00011,2]
[361203257,1747338118451,-247.73,0.00010565,2]
[361203258,1747338118477,-204.99995466,0.000109,2]
[361203259,1747338118500,-500.0,0.00010973,2]
[361203260,1747338118523,-1003.51598088,0.00010999,2]
[361203261,1747338118559,-1200.0,0.00010999,2]
[361203262,1747338118585,-662.2657722,0.00010999,2]
[361203263,1747338118612,-389.39443432,0.00010999,2]
[361203264,1747338118637,-1923.16365698,0.00010999,2]
[361203265,1747338118660,-201.41680337,0.00010999,2]
[361203266,1747338118691,-500.0,0.00010999,2]
[361203267,1747338118722,-500.0,0.00010999,2]
[361203268,1747338118750,-500.0,0.00010999,2]
[361203269,1747338118780,-500.0,0.00010999,2]
[361203270,1747338118808,-500.0,0.00010999,2]
[361203271,1747338118836,-500.0,0.00010999,2]
[361203272,1747338118863,-500.0,0.00010999,2]
[361203273,1747338118889,-164.96467962,0.00010999,2]
[361203274,1747338118916,-500.0,0.00010999,2]
[361203275,1747338118944,-500.0,0.00010999,2]
[361203276,1747338118971,-500.0,0.00010999,2]
[361203277,1747338119000,-477826.25148125,0.00011,2]
[361203278,1747338119024,-171.12539802,0.00011,2]
[361203279,1747338119050,-2939381.5963387,0.00011,2]
[361203280,1747338128880,1261.25,9.151e-05,2]
[361203281,1747338168048,1800.0,0.000103,3]
[361203282,1747338170161,3600.0,0.000104,3]
[361203283,1747338172277,5400.0,0.000105,3]
[361203284,1747338174679,7200.0,0.000106,3]
[361203285,1747338176718,9000.0,0.000107,3]
[361203286,1747338178841,1800.0,0.000108,3]
[361203287,1747338180958,1800.0,0.000109,3]
[361203288,1747338227163,-5879.680802,0.00010842,2]
[361203289,1747338227185,-23900.0,0.00010897,2]
[361203290,1747338227207,-5348.0,0.00010959,2]
[361203291,1747338227231,-300.0,0.00010966,2]
[361203292,1747338227253,-58380.43,0.00010967,2]
[361203293,1747338227278,-500.0,0.00010973,2]
[361203294,1747338227300,-500.0,0.00010973,2]
[361203295,1747338227322,-504.44490417,0.00010973,2]
[361203296,1747338227343,-507.55889128,0.00010973,2]
[361203297,1747338227365,-150.0,0.00010999,2]
[361203298,1747338227387,-441.5105148,0.00010999,2]
[361203299,1747338227408,-259.59628954,0.00010999,2]
[361203300,1747338227430,-1656.48902214,0.00010999,2]
[361203301,1747338227453,-182.79794107,0.00010999,2]
[361203302,1747338227475,-166.10519058,0.00010999,2]
[361203303,1747338227497,-500.0,0.00010999,2]
[361203304,1747338227519,-500.0,0.00010999,2]
[361203305,1747338227540,-500.0,0.00010999,2]
[361203306,1747338227562,-500.0,0.00010999,2]
[361203307,1747338227583,-500.0,0.00010999,2]
[361203308,1747338227608,-500.0,0.00010999,2]
[361203309,1747338227633,-500.0,0.00010999,2]
[361203310,1747338227655,-332.83286854,0.00010999,2]
[361203311,1747338227677,-300.0,0.00010999,2]
[361203312,1747338227701,-391809.64930779,0.00011,2]
[361203313,1747338227725,-201.08774952,0.00011,2]
[361203314,1747338227749,-366797.29441857,0.00011,2]
[361203315,1747338233536,160.55,0.00021945,30]
[361204700,1747338455737,300.0,0.000104,3]
[361204701,1747338458537,600.0,0.000105,3]
[361204703,1747338459955,1000.0,0.000106,3]
[361204706,1747338462061,1300.0,0.000107,3]
[361204708,1747338464185,1600.0,0.000108,3]
[361204709,1747338466283,300.0,0.000109,3]
[361204710,1747338486808,-214.44856175,0.00010046,2]
[361204711,1747338491006,-178.84555361,0.00010046,2]
[361204971,1747338511294,3849.953288,9.995e-05,2]
[361204976,1747338632091,-1359.37,0.0001003,2]
[361204977,1747338632102,-200.0,0.00010038,2]
[361204978,1747338632113,-598.06588464,0.00010046,2]
[361204979,1747338632131,-200.0,0.00010089,2]
[361204980,1747338632141,-200.0,0.0001009,2]
[361204981,1747338632151,-1200.0,0.00010106,2]
[361204982,1747338632161,-300.0,0.00010106,2]
[361204983,1747338632171,-1096.15441536,0.00010107,2]
[361204984,1747338632204,-4522.9499996,0.00010107,2]
[361204985,1747338632358,-1092.8608,0.00010107,2]
[361204986,1747338632371,-234.97478504,0.00010107,2]
[361204987,1747338632381,-300.0,0.0001018,2]
[361204988,1747338632391,-1736.86,0.00010181,2]
[361204989,1747338632401,-166.9,0.00010231,2]
[361204990,1747338632410,-153.86951496,0.00010312,2]
[361204991,1747338632474,-146.13048504,0.00010312,2]
[361204992,1747338632484,-1464.82026574,0.00010313,2]
[361204993,1747338632499,-811.94973426,0.00010313,2]
[361204995,1747338632509,-166.89,0.00010429,2]
[361204996,1747338632519,-200.0,0.00010579,2]
[361204997,1747338632528,-1299.49925982,0.00010735,2]
[361204999,1747338632537,-523.01791486,0.00010774,2]
[361205001,1747338632547,-340.0,0.00010833,2]
[361205003,1747338632556,-482.5176,0.000109,2]
[361205005,1747338632565,-122.07549106,0.000109,2]
[361205272,1747338638142,-82.70242184,0.000109,2]
[361205273,1747338638151,-287.06396847,0.00010925,2]
[361205274,1747338638161,-350.26437765,0.00010925,2]
[361205275,1747338638170,-892.82168237,0.00010925,2]
[361205276,1747338638180,-182.79794106,0.00010925,2]
[361205277,1747338638190,-294.3403432,0.00010925,2]
[361205278,1747338638199,-1104.32601476,0.00010925,2]
[361205279,1747338638208,-173.06419302,0.00010925,2]
[361205280,1747338638218,-1001.0,0.0001095,2]
[361205281,1747338638227,-150.0,0.00010959,2]
[361205282,1747338638236,-166.9,0.00010962,2]
[361205283,1747338638246,-150.0,0.00010972,2]
[361205284,1747338638255,-250.0,0.00010972,2]
[361205285,1747338638264,-502.63310205,0.00010973,2]
[361205286,1747338638274,-500.0,0.00010973,2]
[361205287,1747338638283,-403.17835943,0.00010973,2]
[361205288,1747338638292,-500.0,0.00010973,2]
[361205289,1747338638301,-500.0,0.00010973,2]
[361205290,1747338638311,-500.0,0.00010973,2]
[361205291,1747338638320,-328.46784619,0.00010973,2]
[361205292,1747338638329,-500.78382127,0.00010973,2]
[361205293,1747338638339,-500.0,0.00010973,2]
[361205294,1747338638348,-502.655626,0.00010973,2]
[361205295,1747338638357,-168.38,0.0001099,2]
[361205296,1747338638366,-168.38,0.0001099,2]
[361205297,1747338638375,-168.38,0.0001099,2]
[361205298,1747338638387,-168.38,0.0001099,2]
[361205299,1747338638396,-1000.0,0.0001099,2]
[361205300,1747338638405,-1000.0,0.0001099,2]
[361205301,1747338638415,-1001.0,0.0001099,2]
[361205302,1747338638424,-212.95839417,0.0001099,2]
[361205303,1747338638433,-212.95839417,0.0001099,2]
[361205304,1747338638442,-212.95839417,0.0001099,2]
[361205305,1747338638452,-168.38,0.0001099,2]
[361205306,1747338638462,-168.38,0.0001099,2]
[361205307,1747338638471,-202.0789066,0.00010999,2]
[361205308,1747338638480,-500.0,0.00010999,2]
[361205309,1747338638490,-500.0,0.00010999,2]
[361205310,1747338638500,-500.0,0.00010999,2]
[361205320,1747338638685,-500.0,0.00010999,2]
[361205321,1747338638695,-500.0,0.00010999,2]
[361205322,1747338638706,-489.46679665,0.00010999,2]
[361205323,1747338638715,-500.0,0.00010999,2]
[361205324,1747338638724,-500.0,0.00010999,2]
[361205325,1747338638733,-500.0,0.00010999,2]
[361205326,1747338638743,-500.0,0.00010999,2]
[361205327,1747338638752,-500.0,0.00010999,2]
[361205328,1747338638762,-500.0,0.00010999,2]
[361205329,1747338638775,-500.0,0.00010999,2]
[361205330,1747338638784,-250.0,0.00010999,2]
[361205331,1747338638793,-500.0,0.00010999,2]
[361205332,1747338638802,-500.0,0.00010999,2]
[361205333,1747338638812,-500.0,0.00010999,2]
[361205334,1747338638821,-500.0,0.00010999,2]
[361205335,1747338638831,-500.0,0.00010999,2]
[361205336,1747338638841,-500.0,0.00010999,2]
[361205337,1747338638851,-500.0,0.00010999,2]
[361205338,1747338638861,-500.0,0.00010999,2]
[361205339,1747338638870,-500.0,0.00010999,2]
[361205340,1747338638881,-500.0,0.00010999,2]
[361205341,1747338638890,-500.0,0.00010999,2]
[361205342,1747338638899,-500.0,0.00010999,2]
[361205343,1747338638908,-500.0,0.00010999,2]
[361205344,1747338638918,-500.0,0.00010999,2]
[361205345,1747338638927,-500.0,0.00010999,2]
[361205346,1747338638937,-500.0,0.00010999,2]
[361205347,1747338638947,-500.0,0.00010999,2]
[361205348,1747338638956,-500.0,0.00010999,2]
[361205349,1747338638965,-500.0,0.00010999,2]
[361205350,1747338638974,-500.0,0.00010999,2]
[361205351,1747338638983,-500.0,0.00010999,2]
[361205352,1747338638993,-500.0,0.00010999,2]
[361205353,1747338639002,-500.0,0.00010999,2]
[361205354,1747338639012,-500.0,0.00010999,2]
[361205355,1747338639022,-500.0,0.00010999,2]
[361205356,1747338639031,-500.0,0.00010999,2]
[361205357,1747338639040,-500.0,0.00010999,2]
[361205358,1747338639050,-500.0,0.00010999,2]
[361205359,1747338639060,-500.0,0.00010999,2]
[361205360,1747338639069,-500.0,0.00010999,2]
[361205361,1747338639079,-500.0,0.00010999,2]
[361205362,1747338639089,-500.0,0.00010999,2]
[361205363,1747338639099,-500.0,0.00010999,2]
[361205364,1747338639108,-500.0,0.00010999,2]
[361205365,1747338639118,-500.0,0.00010999,2]
[361205366,1747338639127,-500.0,0.00010999,2]
[361205367,1747338639137,-500.0,0.00010999,2]
[361205368,1747338639147,-500.0,0.00010999,2]
[361205369,1747338639156,-500.0,0.00010999,2]
[361205370,1747338639166,-500.0,0.00010999,2]
[361205371,1747338639176,-500.0,0.00010999,2]
[361205372,1747338639186,-500.0,0.00010999,2]
[361205373,1747338639196,-500.0,0.00010999,2]
[361205374,1747338639207,-500.0,0.00010999,2]
[361205375,1747338639217,-500.0,0.00010999,2]
[361205376,1747338639225,-500.0,0.00010999,2]
[361205377,1747338639235,-452.95675613,0.00010999,2]
[361205378,1747338639244,-500.0,0.00010999,2]
[361205379,1747338639254,-500.0,0.00010999,2]
[361205380,1747338639263,-500.0,0.00010999,2]
[361205381,1747338639272,-500.0,0.00010999,2]
[361205382,1747338639281,-500.0,0.00010999,2]
[361205383,1747338639291,-500.0,0.00010999,2]
[361205384,1747338639300,-3234.44641645,0.00010999,2]
[361205385,1747338639309,-3234.44641645,0.00010999,2]
[361205386,1747338639319,-3234.44641645,0.00010999,2]
[361205387,1747338639328,-3234.44641645,0.00010999,2]
[361205388,1747338639338,-3234.44641645,0.00010999,2]
[361205389,1747338639347,-3234.44641645,0.00010999,2]
[361205390,1747338639356,-3234.44641645,0.00010999,2]
[361205391,1747338639365,-3234.44641645,0.00010999,2]
[361205392,1747338639377,-3234.44641645,0.00010999,2]
[361205393,1747338639387,-3234.44641645,0.00010999,2]
[361205394,1747338639395,-457.98405423,0.00010999,2]
[361205395,1747338639430,-409.05496297,0.00010999,2]
[361205396,1747338639473,-2367.40739925,0.00010999,2]
[361205397,1747338639482,-3234.44641645,0.00010999,2]
[361205398,1747338639492,-3234.44641645,0.00010999,2]
[361205399,1747338639502,-3234.44641645,0.00010999,2]
[361205400,1747338639512,-3234.44641645,0.00010999,2]
[361205401,1747338639521,-3234.44641645,0.00010999,2]
[361205402,1747338639531,-3234.44641645,0.00010999,2]
[361205403,1747338639541,-3234.44641645,0.00010999,2]
[361205404,1747338639552,-3234.44641645,0.00010999,2]
[361205405,1747338639561,-217.58964941,0.00010999,2]
[361205406,1747338639570,-20116.54480286,0.00011,2]
[361205407,1747338639588,-581.03230067,0.00011,2]
[361205408,1747338639599,-12918.73201189,0.00011,2]
[361205409,1747338640301,-444.43653149,0.00011,2]
[361205410,1747338640313,-1235.5582732,0.00011,2]
[361205411,1747338640323,-574.51572812,0.00011,2]
[361205412,1747338640335,-2932.53522158,0.00011,2]
[361205413,1747338640346,-2506.6162527,0.00011,2]
[361205414,1747338640357,-5897.93119186,0.00011,2]
[361205415,1747338640368,-464.09219396,0.00011,2]
[361205416,1747338640380,-396.40209454,0.00011,2]
[361205417,1747338640390,-342.55174876,0.00011,2]
[361205418,1747338640401,-295.35289336,0.00011,2]
[361205419,1747338640412,-1192.94017724,0.00011,2]
[361205420,1747338640423,-29518.05681174,0.00011,2]
[361205421,1747338640447,-86820.73493241,0.00011,2]
[361205422,1747338640463,-289.15000193,0.00011,2]
[361205423,1747338640484,-6748.86330016,0.00011,2]
[361205424,1747338640634,-7972.22989161,0.00011,2]
[361205425,1747338640648,-46440.30174682,0.00011,2]
[361205426,1747338640657,-380793.11085235,0.00011,2]
[361205427,1747338640671,-100725.51196457,0.00011,2]
[361205428,1747338640686,-15468.83166515,0.00011,2]
[361205430,1747338641222,150.0,0.00013,5]
[361205444,1747338643234,-261.59487552,0.00011,2]
[361205445,1747338643286,-112123.35804859,0.00011,2]
[361205446,1747338643394,-6141.53740692,0.00011,2]
[361205447,1747338643501,-1157.97386792,0.00011,2]
[361205458,1747338646158,-253.45092794,0.00011,2]
[361205459,1747338648385,-1649.344377,0.00011,2]
[361205460,1747338648407,-4014.88866804,0.00011,2]
[361205461,1747338648441,-2360.60765,0.00011,2]
[361205462,1747338648452,-1029.4999998,0.00011,2]
[361205463,1747338648464,-2401.0585068,0.00011,2]
[361205464,1747338648475,-63267.40620345,0.00011,2]
[361205465,1747338648529,-4201.86946146,0.00011,2]
[361205514,1747338737193,414.35168371,0.00023287,30]
[361205515,1747338778250,150.0,0.00010179,7]
[361205516,1747338832408,450.0,0.0001,2]
[361205517,1747338929228,26489.03699469,0.00011,3]
[361205518,1747338959750,172.1,8.11e-05,2]
[361205519,1747339265240,160.55,0.00021945,30]
[361205520,1747339287037,1725.42,8.219e-05,2]
[361205521,1747339324005,171.28,9.998e-05,2]
[361205522,1747339414198,-187.876677,0.00010028,2]
[361205523,1747339442464,154.11966972,9.949e-05,2]
[361205524,1747339478768,1626.84,9.979e-05,2]
[361205525,1747339482670,1049.58,9.982e-05,2]
[361205526,1747339483572,200.0,9.982e-05,2]
[361205527,1747339493867,500.0,9.982e-05,2]
[361205530,1747339642155,-1633.66966049,0.00011,3]
[361205537,1747339654895,-90.153323,0.00010028,2]
[361205538,1747339654918,-200.0,0.00010037,2]
[361205540,1747339654941,-1200.0,0.00010044,2]
[361205541,1747339654963,-300.0,0.00010044,2]
[361205542,1747339654985,-300.0,0.00010044,2]
[361205543,1747339655183,-300.0,0.00010044,2]
[361205544,1747339655206,-15526.17701651,0.00010045,2]
[361205553,1747339709290,-232.12,0.00010031,2]
[361205554,1747339709315,-200.0,0.00010038,2]
[361205555,1747339709340,-8373.82298349,0.00010045,2]
[361205556,1747339709363,-2374.97,0.00010049,2]
[361205557,1747339709387,-1852.42,0.00010092,2]
[361205558,1747339709411,-556.8,0.0001013,2]
[361205559,1747339709437,-1000.0,0.00010208,2]
[361205560,1747339709460,-154.11966971,0.00010424,2]
[361205561,1747339709486,-1725.42,0.00010477,2]
[361205562,1747339709509,-154.11966971,0.00010899,2]
[361205563,1747339709531,-315.23793984,0.000109,2]
[361205564,1747339709554,-229.6511748,0.000109,2]
[361205565,1747339709577,-196.22689546,0.000109,2]
[361205566,1747339709601,-792.76638292,0.000109,2]
[361205567,1747339709625,-490.82954315,0.00010923,2]
[361205568,1747339709647,-167.64238623,0.00010945,2]
[361205569,1747339709669,-200.71,0.00010959,2]
[361205570,1747339709692,-150.0,0.00010972,2]
[361205571,1747339709716,-560.30869169,0.00010973,2]
[361205572,1747339709740,-500.0,0.00010973,2]
[361205573,1747339709763,-500.0,0.00010973,2]
[361205574,1747339709787,-500.0,0.00010973,2]
[361205575,1747339709809,-500.0,0.00010973,2]
[361205576,1747339709833,-507.04838419,0.00010973,2]
[361205577,1747339709856,-503.11082927,0.00010973,2]
[361205578,1747339709879,-500.0,0.00010973,2]
[361205579,1747339709903,-500.0,0.00010973,2]
[361205580,1747339709929,-1262.67544954,0.00010998,2]
[361205581,1747339733895,-187.16328276,0.000109,2]
[361205582,1747339733919,-150.0,0.00010959,2]
[361205583,1747339733944,-312.83671724,0.00010998,2]
[361205620,1747339832704,-71.18749474,0.00010004,2]
[361205621,1747339832716,-457.38250526,0.00010004,2]
[361205622,1747339832726,-7118.65,0.00010185,2]
[361205623,1747339832736,-4035.51,0.00010191,2]
[361205624,1747339832746,-200.0,0.00010452,2]
[361205625,1747339832755,-200.0,0.0001078,2]
[361205626,1747339832764,-196.22689545,0.000109,2]
[361205627,1747339832774,-528.51092196,0.000109,2]
[361205628,1747339832783,-500.0,0.00010973,2]
[361205629,1747339832793,-300.0,0.00010997,2]
[361205630,1747339832802,-1875.57483322,0.00010998,2]
[361205631,1747339832813,-173.928,0.00010998,2]
[361205632,1747339832822,-150.0,0.00010998,2]
[361205633,1747339832831,-300.0,0.00010998,2]
[361205634,1747339832842,-1200.0,0.00010998,2]
[361205635,1747339832851,-500.0,0.00010999,2]
[361205636,1747339832860,-500.0,0.00010999,2]
[361205637,1747339832869,-500.0,0.00010999,2]
[361205638,1747339832878,-500.0,0.00010999,2]
[361205639,1747339832888,-500.0,0.00010999,2]
[361205640,1747339832899,-500.0,0.00010999,2]
[361205641,1747339832909,-500.0,0.00010999,2]
[361205642,1747339832919,-500.0,0.00010999,2]
[361205643,1747339832928,-500.0,0.00010999,2]
[361205644,1747339832937,-500.0,0.00010999,2]
[361205645,1747339832947,-500.0,0.00010999,2]
[361205646,1747339832957,-500.0,0.00010999,2]
[361205647,1747339832966,-500.0,0.00010999,2]
[361205648,1747339832976,-500.0,0.00010999,2]
[361205649,1747339832985,-500.0,0.00010999,2]
[361205650,1747339832994,-500.0,0.00010999,2]
[361205651,1747339833004,-500.0,0.00010999,2]
[361205652,1747339833014,-500.0,0.00010999,2]
[361205653,1747339833024,-474.9526328,0.00010999,2]
[361205654,1747339833034,-500.0,0.00010999,2]
[361205655,1747339833044,-500.0,0.00010999,2]
[361205656,1747339833054,-500.0,0.00010999,2]
[361205657,1747339833065,-500.0,0.00010999,2]
[361205658,1747339833075,-500.0,0.00010999,2]
[361205659,1747339833085,-500.0,0.00010999,2]
[361205660,1747339833095,-500.0,0.00010999,2]
[361205661,1747339833104,-500.0,0.00010999,2]
[361205662,1747339833114,-500.0,0.00010999,2]
[361205663,1747339833127,-179.96910917,0.00010999,2]
[361205664,1747339833137,-500.0,0.00010999,2]
[361205665,1747339833147,-500.0,0.00010999,2]
[361205666,1747339833157,-500.0,0.00010999,2]
[361205667,1747339833168,-500.0,0.00010999,2]
[361205668,1747339833178,-500.0,0.00010999,2]
[361205669,1747339833188,-500.0,0.00010999,2]
[361205670,1747339833199,-500.0,0.00010999,2]
[361205671,1747339833210,-500.0,0.00010999,2]
[361205672,1747339833221,-500.0,0.00010999,2]
[361205673,1747339833231,-500.0,0.00010999,2]
[361205674,1747339833240,-500.0,0.00010999,2]
[361205675,1747339833250,-500.0,0.00010999,2]
[361205676,1747339833261,-500.0,0.00010999,2]
[361205677,1747339833271,-500.0,0.00010999,2]
[361205678,1747339833281,-500.0,0.00010999,2]
[361205679,1747339833291,-500.0,0.00010999,2]
[361205680,1747339833300,-500.0,0.00010999,2]
[361205681,1747339833311,-500.0,0.00010999,2]
[361205682,1747339833321,-500.0,0.00010999,2]
[361205683,1747339833331,-500.0,0.00010999,2]
[361205684,1747339833340,-500.0,0.00010999,2]
[361205685,1747339833350,-500.0,0.00010999,2]
[361205686,1747339833360,-500.0,0.00010999,2]
[361205687,1747339833370,-500.0,0.00010999,2]
[361205688,1747339833381,-500.0,0.00010999,2]
[361205689,1747339833392,-500.0,0.00010999,2]
[361205690,1747339833401,-500.0,0.00010999,2]
[361205691,1747339833411,-500.0,0.00010999,2]
[361205692,1747339833421,-500.0,0.00010999,2]
[361205693,1747339833431,-500.0,0.00010999,2]
[361205694,1747339833440,-500.0,0.00010999,2]
[361205695,1747339833450,-500.0,0.00010999,2]
[361205696,1747339833460,-350.0,0.00010999,2]
[361205697,1747339833470,-500.0,0.00010999,2]
[361205698,1747339833479,-500.0,0.00010999,2]
[361205699,1747339833489,-500.0,0.00010999,2]
[361205700,1747339833499,-500.0,0.00010999,2]
[361205701,1747339833508,-500.0,0.00010999,2]
[361205702,1747339833517,-500.0,0.00010999,2]
[361205703,1747339833527,-500.0,0.00010999,2]
[361205704,1747339833536,-500.0,0.00010999,2]
[361205705,1747339833546,-500.0,0.00010999,2]
[361205706,1747339833556,-500.0,0.00010999,2]
[361205707,1747339833568,-500.0,0.00010999,2]
[361205708,1747339833578,-261.00177481,0.00010999,2]
[361205709,1747339833587,-473.44464164,0.00010999,2]
[361205710,1747339833598,-500.0,0.00010999,2]
[361205711,1747339833608,-500.0,0.00010999,2]
[361205712,1747339833617,-630.66665933,0.00010999,2]
[361205713,1747339833628,-499.99999999,0.00010999,2]
[361205714,1747339833638,-300.0,0.00010999,2]
[361205715,1747339833648,-300.0,0.00010999,2]
[361205716,1747339833658,-171.12539803,0.00011,2]
[361205717,1747339833667,-149908.06851874,0.00011,2]
[361205718,1747339833704,-11675.84919607,0.00011,2]
[361205719,1747339833738,-111206.18591623,0.00011,2]
[361205720,1747339833907,-38682.85191846,0.00011,2]
[361205721,1747339833920,-1499.21515664,0.00011,2]
[361205722,1747339833980,-488.86610413,0.00011,2]
[361205723,1747339833992,-742.81520405,0.00011,2]
[361205724,1747339834004,-298.09611784,0.00011,2]
[361205740,1747339839026,-261.92,0.000109,2]
[361205741,1747339839102,-21.79414591,0.000109,2]
[361205742,1747339839112,-3062.51585409,0.00011,2]
[361205744,1747339839124,-4134.8,0.00011,2]
[361205746,1747339839137,-48577.11318312,0.00011,2]
[361205749,1747339839159,-68240.34450916,0.00011,2]
[361205751,1747339839172,-1487.5474703,0.00011,2]
[361205755,1747339839220,-36355.669944,0.00011,2]
[361205756,1747339839231,-40744.1828,0.00011,2]